[Event "GEO-ch 1st League 2021"]
[Site "Tbilisi"]
[Date "2021.04.05"]
[Round "8.4"]
[White "Qalichava, Akaki"]
[Black "Morchiashvili, Bachana"]
[Result "1/2-1/2"]
[ECO "B35"]
[WhiteElo "1877"]
[BlackElo "2313"]
[Annotator "ChessBase"]
[PlyCount "171"]
[EventDate "2021.03.29"]
[EventType "swiss"]
[EventCountry "GEO"]
[SourceTitle "playchess.com"]
[Source "ChessBase"]
[SourceQuality "1"]
[TimeControl "5400+30"]

1. e4 {[%emt 0:01:15]} c5 {[%emt 0:00:00]} 2. Nf3 {[%emt 0:00:20]} Nc6 {[%emt 0:00:00]} 3. d4 {[%emt 0:00:09]} cxd4 {[%emt 0:00:00]} 4. Nxd4 {[%emt 0:00:03]} g6 {[%emt 0:00:08]} 5. Nc3 {[%emt 0:00:30]} Bg7 {[%emt 0:00:06]} 6. Be3 {[%emt 0:00:11]} Nf6 {[%emt 0:00:18]} 7. Bc4 {[%emt 0:00:39]} O-O {[%emt 0:00:11]} 8. Bb3 {[%emt 0:00:07]} Re8 {[%emt 0:01:40]} 9. f3 {[%emt 0:01:52]} e6 {[%emt 0:00:57]} 10. Qd2 {[%emt 0:10:39]} d5 {[%emt 0:00:34]} 11. exd5 {[%emt 0:00:59]} Nxd5 {[%emt 0:03:43]} 12. Bxd5 {[%emt 0:12:21]} Nxd4 {[%emt 0:02:21]} 13. Bb3 {[%emt 0:00:36]} Nxb3 {[%emt 0:08:58]} 14. axb3 {[%emt 0:00:17]} Qxd2+ {[%emt 0:04:37]} 15. Kxd2 {[%emt 0:01:07]} a6 {[%emt 0:02:11]} 16. Na4 {[%emt 0:05:34]} Bd7 {[%emt 0:00:52]} 17. c3 {[%emt 0:00:09]} Bc6 {[%emt 0:07:51]} 18. Rhd1 {[%emt 0:07:03]} f5 {[%emt 0:06:47]} 19. Ke2 {[%emt 0:08:06]} Rad8 {[%emt 0:05:20]} 20. Bb6 {[%emt 0:05:57]} Rxd1 {[%emt 0:01:04]} 21. Rxd1 {[%emt 0:00:05]} Kf7 {[%emt 0:03:00]} 22. Nc5 {[%emt 0:07:14]} g5 {[%emt 0:04:34]} 23. Nd3 {[%emt 0:02:46]} Rc8 {[%emt 0:09:48]} 24. Nb4 {[%emt 0:03:52]} Bb5+ {[%emt 0:00:19]} 25. c4 {[%emt 0:00:32]} Be8 {[%emt 0:00:43]} 26. Rd2 {[%emt 0:01:58]} Bf8 {[%emt 0:06:21]} 27. Nd3 {[%emt 0:04:11]} Bd6 {[%emt 0:01:42]} 28. h4 {[%emt 0:08:23]} gxh4 {[%emt 0:03:41]} 29. Bd4 {[%emt 0:00:08]} Bc6 {[%emt 0:04:50]} 30. Ne5+ {[%emt 0:00:53]} Ke7 {[%emt 0:03:41]} 31. Bc3 {[%emt 0:05:51]} Rg8 {[%emt 0:03:48]} 32. Kf2 {[%emt 0:01:58]} h5 {[%emt 0:08:10]} 33. b4 {[%emt 0:03:16]} h3 {[%emt 0:02:12]} 34. gxh3 {[%emt 0:00:04]} h4 {[%emt 0:00:02]} 35. Nxc6+ {[%emt 0:01:46]} bxc6 {[%emt 0:00:02]} 36. Bf6+ {[%emt 0:00:37]} Kxf6 {[%emt 0:00:01]} 37. Rxd6 {[%emt 0:00:05]} Rb8 {[%emt 0:00:52]} 38. Rxc6 {[%emt 0:00:05]} Rxb4 {[%emt 0:00:02]} 39. Rxa6 {[%emt 0:00:05]} Rxc4 {[%emt 0:01:25]} 40. Rb6 {[%emt 0:01:32]} Rc2+ {[%emt 0:00:08]} 41. Ke3 {[%emt 0:00:04]} Rh2 {[%emt 0:00:31]} 42. Rb8 {[%emt 0:02:10]} Rxh3 {[%emt 0:00:26]} 43. Rh8 {[%emt 0:00:04]} Rh1 {[%emt 0:01:54]} 44. b4 {[%emt 0:00:17]} Ke5 {[%emt 0:01:18]} 45. f4+ {[%emt 0:00:43]} Kd6 {[%emt 0:01:02]} 46. Rd8+ {[%emt 0:00:36]} Kc7 {[%emt 0:00:44]} 47. Rh8 {[%emt 0:00:17]} Kc6 {[%emt 0:00:22]} 48. Rd8 {[%emt 0:02:28]} h3 {[%emt 0:01:05]} 49. Kf2 {[%emt 0:01:05]} h2 {[%emt 0:00:31]} 50. Kg2 {[%emt 0:00:05]} Rf1 {[%emt 0:00:19]} 51. Kxh2 {[%emt 0:00:31]} Rxf4 {[%emt 0:00:03]} 52. Rb8 {[%emt 0:00:06]} Kc7 {[%emt 0:00:11]} 53. Re8 {[%emt 0:00:28]} Kd6 {[%emt 0:00:18]} 54. Rb8 {[%emt 0:00:16]} Rg4 {[%emt 0:00:05]} 55. b5 {[%emt 0:00:04]} Ke5 {[%emt 0:02:49]} 56. b6 {[%emt 0:00:18]} Rb4 {[%emt 0:01:34]} 57. b7 {[%emt 0:00:08]} f4 {[%emt 0:00:28]} 58. Kg2 {[%emt 0:01:23]} Rb2+ {[%emt 0:00:16]} 59. Kf3 {[%emt 0:00:12]} Rb3+ {[%emt 0:00:06]} 60. Kf2 {[%emt 0:00:06]} Rb1 {[%emt 0:01:01]} 61. Kf3 {[%emt 0:00:42]} Rb3+ {[%emt 0:01:20]} 62. Kf2 {[%emt 0:00:05]} Ke4 {[%emt 0:00:19]} 63. Re8 {[%emt 0:00:20]} Rb2+ {[%emt 0:00:03]} 64. Kg1 {[%emt 0:00:20]} Rxb7 {[%emt 0:00:03]} 65. Rxe6+ {[%emt 0:00:03]} Kf3 {[%emt 0:00:01]} 66. Ra6 {[%emt 0:00:15]} Rb1+ {[%emt 0:00:43]} 67. Kh2 {[%emt 0:00:05]} Re1 {[%emt 0:00:36]} 68. Ra3+ {[%emt 0:00:38]} Kf2 {[%emt 0:00:32]} 69. Ra2+ {[%emt 0:00:14]} Re2 {[%emt 0:00:08]} 70. Ra1 {[%emt 0:00:07]} f3 {[%emt 0:00:21]} 71. Kh3 {[%emt 0:00:11]} Re1 {[%emt 0:00:42]} 72. Ra2+ {[%emt 0:00:08]} Re2 {[%emt 0:00:44]} 73. Ra1 {[%emt 0:00:52]} Rd2 {[%emt 0:01:04]} 74. Rb1 {[%emt 0:00:54]} Ra2 {[%emt 0:00:07]} 75. Rc1 {[%emt 0:00:20]} Ra8 {[%emt 0:00:35]} 76. Rc2+ {[%emt 0:00:14]} Ke1 {[%emt 0:00:14]} 77. Rc1+ {[%emt 0:00:42]} Kd2 {[%emt 0:00:27]} 78. Rb1 {[%emt 0:00:08]} Ra2 {[%emt 0:01:56]} 79. Kg3 {[%emt 0:01:49]} Ke2 {[%emt 0:00:08]} 80. Rc1 {[%emt 0:00:14]} f2 {[%emt 0:00:43]} 81. Kg2 {[%emt 0:00:05]} Ra8 {[%emt 0:00:42]} 82. Rc2+ {[%emt 0:00:06]} Ke1 {[%emt 0:00:19]} 83. Rc1+ {[%emt 0:00:05]} Kd2 {[%emt 0:00:40]} 84. Rf1 {[%emt 0:00:07]} Ke3 {[%emt 0:00:14]} 85. Rxf2 {[%emt 0:00:06]} Rg8+ {[%emt 0:00:08]} 86. Kf1 {[%emt 0:00:05]} 1/2-1/2

[Event "GEO-ch 1st League 2021"]
[Site "Tbilisi"]
[Date "2021.04.05"]
[Round "8.5"]
[White "Esadze, Tamari"]
[Black "Arabidze, Meri"]
[Result "0-1"]
[ECO "B85"]
[WhiteElo "1889"]
[BlackElo "2437"]
[Annotator "ChessBase"]
[PlyCount "70"]
[EventDate "2021.03.29"]
[EventType "swiss"]
[EventCountry "GEO"]
[SourceTitle "playchess.com"]
[Source "ChessBase"]
[SourceQuality "1"]
[TimeControl "5400+30"]

1. e4 {[%emt 0:00:00]} c5 {[%emt 0:00:00]} 2. Nf3 {[%emt 0:00:00]} e6 {[%emt 0:00:01]} 3. d4 {[%emt 0:00:00]} cxd4 {[%emt 0:00:04]} 4. Nxd4 {[%emt 0:00:00]} Nc6 {[%emt 0:00:05]} 5. Nc3 {[%emt 0:00:00]} a6 {[%emt 0:00:06]} 6. Be2 {[%emt 0:00:15]} d6 {[%emt 0:00:19]} 7. Be3 {[%emt 0:00:20]} Nf6 {[%emt 0:00:18]} 8. O-O {[%emt 0:00:18]} Be7 {[%emt 0:00:06]} 9. Qd2 {[%emt 0:01:39]} O-O {[%emt 0:00:44]} 10. f4 {[%emt 0:00:36]} Bd7 {[%emt 0:01:15]} 11. Rad1 {[%emt 0:01:16]} b5 {[%emt 0:04:06]} 12. a3 {[%emt 0:02:24]} Qc7 {[%emt 0:01:48]} 13. Qe1 {[%emt 0:04:29]} b4 {[%emt 0:28:07]} 14. axb4 {[%emt 0:05:19]} Nxb4 {[%emt 0:00:06]} 15. Qg3 {[%emt 0:00:17]} Kh8 {[%emt 0:02:56]} 16. Kh1 {[%emt 0:07:47]} Rac8 {[%emt 0:06:53]} 17. e5 {[%emt 0:07:29]} Ne8 {[%emt 0:05:50]} 18. Bd3 {[%emt 0:12:35]} Nxd3 {[%emt 0:01:21]} 19. Rxd3 {[%emt 0:06:24]} f5 {[%emt 0:03:31]} 20. exd6 {[%emt 0:04:52]} Nxd6 {[%emt 0:03:36]} 21. Rfd1 {[%emt 0:00:23]} Rcd8 {[%emt 0:10:19]} 22. Nf3 {[%emt 0:15:31]} Nc4 {[%emt 0:00:49]} 23. Ne5 {[%emt 0:10:36]} Nxe5 {[%emt 0:02:07]} 24. fxe5 {[%emt 0:00:02]} Bc6 {[%emt 0:03:33]} 25. Rxd8 {[%emt 0:09:08]} Bxd8 {[%emt 0:00:17]} 26. Ne2 {[%emt 0:02:32]} Be4 {[%emt 0:05:56]} 27. Nd4 {[%emt 0:00:47]} Qf7 {[%emt 0:01:09]} 28. c3 {[%emt 0:04:13]} g5 {[%emt 0:02:58]} 29. Bc1 {[%emt 0:02:08]} f4 {[%emt 0:01:16]} 30. Qg4 {[%emt 0:01:15]} Bd5 {[%emt 0:00:50]} 31. c4 {[%emt 0:01:46]} Bxc4 {[%emt 0:01:42]} 32. Nc6 {[%emt 0:00:42]} Bb6 {[%emt 0:02:06]} 33. Qxg5 {[%emt 0:00:26]} f3 {[%emt 0:01:44]} 34. Be3 {[%emt 0:00:56]} Bxe3 {[%emt 0:00:45]} 35. Qxe3 {[%emt 0:00:09]} f2 {[%emt 0:00:09]} 0-1

[Event "GEO-ch 1st League 2021"]
[Site "Tbilisi"]
[Date "2021.04.05"]
[Round "8.6"]
[White "Bagaturov, Giorgi"]
[Black "Volkov, Nika"]
[Result "0-1"]
[ECO "D47"]
[WhiteElo "2431"]
[BlackElo "2084"]
[Annotator "ChessBase"]
[PlyCount "68"]
[EventDate "2021.03.29"]
[EventType "swiss"]
[EventCountry "GEO"]
[SourceTitle "playchess.com"]
[Source "ChessBase"]
[SourceQuality "1"]
[TimeControl "5400+30"]

1. d4 {[%emt 0:00:00]} Nf6 {[%emt 0:00:00]} 2. Nf3 {[%emt 0:00:00]} d5 {[%emt 0:00:49]} 3. c4 {[%emt 0:00:11]} e6 {[%emt 0:00:18]} 4. Nc3 {[%emt 0:00:52]} c6 {[%emt 0:00:03]} 5. e3 {[%emt 0:00:32]} Nbd7 {[%emt 0:00:03]} 6. Bd3 {[%emt 0:02:12]} dxc4 {[%emt 0:00:12]} 7. Bxc4 {[%emt 0:00:05]} b5 {[%emt 0:00:03]} 8. Bd3 {[%emt 0:00:07]} Bd6 {[%emt 0:00:03]} 9. O-O {[%emt 0:00:46]} Bb7 {[%emt 0:00:31]} 10. e4 {[%emt 0:07:51]} e5 {[%emt 0:03:44]} 11. Ne2 {[%emt 0:00:57]} exd4 {[%emt 0:01:25]} 12. Nexd4 {[%emt 0:00:40]} O-O {[%emt 0:01:09]} 13. Bc2 {[%emt 0:10:18]} Re8 {[%emt 0:03:58]} 14. Nf5 {[%emt 0:07:07]} Bf8 {[%emt 0:00:46]} 15. Bg5 {[%emt 0:03:14]} c5 {[%emt 0:00:36]} 16. Re1 {[%emt 0:04:48]} Qc7 {[%emt 0:01:16]} 17. e5 {[%emt 0:29:05]} Nxe5 {[%emt 0:02:21]} 18. Nxe5 {[%emt 0:05:33]} Rxe5 {[%emt 0:00:06]} 19. Qd3 {[%emt 0:01:20]} Qc6 {[%emt 0:07:00]} 20. Qh3 {[%emt 0:02:22]} Rxe1+ {[%emt 0:00:06]} 21. Rxe1 {[%emt 0:00:04]} h6 {[%emt 0:00:50]} 22. Bf4 {[%emt 0:02:17]} Re8 {[%emt 0:00:18]} 23. Rd1 {[%emt 0:03:08]} Re2 {[%emt 0:00:25]} 24. Ne3 {[%emt 0:00:28]} Nd5 {[%emt 0:01:51]} 25. Nxd5 {[%emt 0:08:08]} Rxc2 {[%emt 0:01:52]} 26. Qg4 {[%emt 0:05:16]} Rc4 {[%emt 0:04:06]} 27. Ne3 {[%emt 0:01:57]} Rd4 {[%emt 0:02:53]} 28. Rxd4 {[%emt 0:00:18]} cxd4 {[%emt 0:00:02]} 29. Nf5 {[%emt 0:00:05]} h5 {[%emt 0:00:09]} 30. Qg5 {[%emt 0:01:22]} g6 {[%emt 0:03:45]} 31. h3 {[%emt 0:01:05]} Qe6 {[%emt 0:05:05]} 32. Nxd4 {[%emt 0:02:08]} Qe1+ {[%emt 0:00:04]} 33. Kh2 {[%emt 0:00:03]} Qxf2 {[%emt 0:00:07]} 34. Ne6 {[%emt 0:01:45]} Be7 {[%emt 0:00:43]} 0-1

[Event "GEO-ch 1st League 2021"]
[Site "Tbilisi"]
[Date "2021.04.05"]
[Round "8.7"]
[White "Akhvlediani, Irakli"]
[Black "Kheladze, Ilia"]
[Result "1-0"]
[ECO "D00"]
[WhiteElo "2355"]
[BlackElo "1813"]
[Annotator "ChessBase"]
[PlyCount "55"]
[EventDate "2021.03.29"]
[EventType "swiss"]
[EventCountry "GEO"]
[SourceTitle "playchess.com"]
[Source "ChessBase"]
[SourceQuality "1"]
[TimeControl "5400+30"]

1. d4 {[%emt 0:00:00]} d5 {[%emt 0:00:00]} 2. Bf4 {[%emt 0:00:00]} Nf6 {[%emt 0:00:00]} 3. Nc3 {[%emt 0:00:00]} c5 {[%emt 0:00:00]} 4. e3 {[%emt 0:00:00]} Nc6 {[%emt 0:00:14]} 5. Nb5 {[%emt 0:00:00]} e5 {[%emt 0:00:28]} 6. dxe5 {[%emt 0:00:00]} a6 {[%emt 0:00:08]} 7. Nc3 {[%emt 0:00:08]} d4 {[%emt 0:00:51]} 8. exf6 {[%emt 0:00:04]} dxc3 {[%emt 0:00:06]} 9. Qxd8+ {[%emt 0:00:04]} Kxd8 {[%emt 0:00:05]} 10. O-O-O+ {[%emt 0:00:05]} Ke8 {[%emt 0:00:10]} 11. b3 {[%emt 0:00:14]} gxf6 {[%emt 0:00:18]} 12. Ne2 {[%emt 0:00:04]} Ne5 {[%emt 0:00:30]} 13. Nxc3 {[%emt 0:00:06]} Be6 {[%emt 0:00:07]} 14. Nd5 {[%emt 0:00:17]} Bxd5 {[%emt 0:00:15]} 15. Rxd5 {[%emt 0:00:02]} Rd8 {[%emt 0:00:10]} 16. Rxd8+ {[%emt 0:00:05]} Kxd8 {[%emt 0:00:07]} 17. Be2 {[%emt 0:00:12]} Rg8 {[%emt 0:00:15]} 18. Bg3 {[%emt 0:00:05]} c4 {[%emt 0:01:25]} 19. Rd1+ {[%emt 0:00:05]} Kc8 {[%emt 0:00:06]} 20. Bxc4 {[%emt 0:00:17]} Ba3+ {[%emt 0:00:08]} 21. Kb1 {[%emt 0:00:02]} Nxc4 {[%emt 0:00:14]} 22. bxc4 {[%emt 0:00:02]} Rd8 {[%emt 1:35:23]} 23. Rxd8+ {[%emt 0:00:06]} Kxd8 {[%emt 0:00:00]} 24. c3 {[%emt 0:00:02]} Kd7 {[%emt 0:00:00]} 25. Kc2 {[%emt 0:00:02]} Kc6 {[%emt 0:00:00]} 26. e4 {[%emt 0:00:09]} h6 {[%emt 0:00:00]} 27. Bf4 {[%emt 0:00:15]} Kc5 {[%emt 0:00:00]} 28. Kb3 {[%emt 1:41:34]} 1-0

[Event "GEO-ch 1st League 2021"]
[Site "Tbilisi"]
[Date "2021.04.05"]
[Round "8.8"]
[White "Chkhaidze, Nikoloz"]
[Black "Adamia, Jaba"]
[Result "0-1"]
[ECO "B43"]
[WhiteElo "2307"]
[BlackElo "1899"]
[Annotator "ChessBase"]
[PlyCount "122"]
[EventDate "2021.03.29"]
[EventType "swiss"]
[EventCountry "GEO"]
[SourceTitle "playchess.com"]
[Source "ChessBase"]
[SourceQuality "1"]
[TimeControl "5400+30"]

1. e4 {[%emt 0:00:00]} c5 {[%emt 0:00:00]} 2. Nf3 {[%emt 0:00:00]} e6 {[%emt 0:00:00]} 3. d4 {[%emt 0:00:02]} cxd4 {[%emt 0:00:00]} 4. Nxd4 {[%emt 0:00:04]} a6 {[%emt 0:00:00]} 5. Nc3 {[%emt 0:00:02]} Qc7 {[%emt 0:00:00]} 6. g4 {[%emt 0:00:09]} b5 {[%emt 0:05:18]} 7. Bg2 {[%emt 0:00:26]} Bb7 {[%emt 0:01:19]} 8. Qe2 {[%emt 0:00:05]} Ne7 {[%emt 0:30:22]} 9. Be3 {[%emt 0:04:15]} Ng6 {[%emt 0:06:34]} 10. O-O-O {[%emt 0:06:38]} Nf4 {[%emt 0:00:51]} 11. Qf3 {[%emt 0:01:02]} Nxg2 {[%emt 0:00:43]} 12. Qxg2 {[%emt 0:00:02]} Nc6 {[%emt 0:05:32]} 13. Nxc6 {[%emt 0:03:24]} Qxc6 {[%emt 0:01:58]} 14. f3 {[%emt 0:01:08]} Rc8 {[%emt 0:05:55]} 15. Rd2 {[%emt 0:02:42]} Bc5 {[%emt 0:13:19]} 16. Bxc5 {[%emt 0:02:22]} Qxc5 {[%emt 0:00:03]} 17. Rhd1 {[%emt 0:00:31]} b4 {[%emt 0:00:35]} 18. Ne2 {[%emt 0:01:48]} d5 {[%emt 0:00:18]} 19. e5 {[%emt 0:00:57]} d4 {[%emt 0:07:17]} 20. Nxd4 {[%emt 0:01:08]} Qxe5 {[%emt 0:00:05]} 21. f4 {[%emt 0:20:04]} Qc7 {[%emt 0:01:12]} 22. Qf2 {[%emt 0:03:29]} O-O {[%emt 0:00:23]} 23. h4 {[%emt 0:02:17]} Rfd8 {[%emt 0:02:30]} 24. h5 {[%emt 0:02:45]} Bd5 {[%emt 0:04:54]} 25. Kb1 {[%emt 0:01:22]} Be4 {[%emt 0:03:36]} 26. h6 {[%emt 0:02:45]} e5 {[%emt 0:02:23]} 27. Re2 {[%emt 0:25:34]} Rxd4 {[%emt 0:01:57]} 28. Rxd4 {[%emt 0:00:12]} exd4 {[%emt 0:00:15]} 29. Rxe4 {[%emt 0:00:07]} d3 {[%emt 0:00:06]} 30. Re1 {[%emt 0:08:26]} dxc2+ {[%emt 0:04:10]} 31. Kc1 {[%emt 0:00:02]} Qc4 {[%emt 0:00:58]} 32. Qe3 {[%emt 0:02:46]} gxh6 {[%emt 0:01:09]} 33. b3 {[%emt 0:00:21]} Qc3 {[%emt 0:01:53]} 34. Qxc3 {[%emt 0:08:09]} Rxc3 {[%emt 0:00:02]} 35. Re4 {[%emt 0:00:31]} a5 {[%emt 0:00:19]} 36. Re5 {[%emt 0:00:02]} Rf3 {[%emt 0:00:24]} 37. f5 {[%emt 0:02:03]} Kg7 {[%emt 0:00:23]} 38. Rxa5 {[%emt 0:00:09]} Rf4 {[%emt 0:00:06]} 39. Kxc2 {[%emt 0:00:44]} Rxg4 {[%emt 0:00:04]} 40. Kd3 {[%emt 0:00:16]} h5 {[%emt 0:02:29]} 41. a4 {[%emt 0:01:05]} bxa3 {[%emt 0:00:23]} 42. Rxa3 {[%emt 0:00:02]} Kf6 {[%emt 0:00:21]} 43. Ra6+ {[%emt 0:00:25]} Kxf5 {[%emt 0:00:48]} 44. Rh6 {[%emt 0:00:09]} h4 {[%emt 0:00:28]} 45. Rxh7 {[%emt 0:00:05]} Kg6 {[%emt 0:00:31]} 46. Rh8 {[%emt 0:00:05]} Kg7 {[%emt 0:00:33]} 47. Rh5 {[%emt 0:01:38]} Kg6 {[%emt 0:00:07]} 48. Rh8 {[%emt 0:00:03]} f5 {[%emt 0:00:40]} 49. Ke3 {[%emt 0:00:35]} Rb4 {[%emt 0:00:20]} 50. Kf2 {[%emt 0:00:05]} Kg5 {[%emt 0:00:28]} 51. Rg8+ {[%emt 0:00:14]} Kf4 {[%emt 0:00:19]} 52. Rh8 {[%emt 0:00:03]} Kg4 {[%emt 0:00:49]} 53. Rg8+ {[%emt 0:02:20]} Kh3 {[%emt 0:00:34]} 54. Rf8 {[%emt 0:00:01]} f4 {[%emt 0:00:42]} 55. Rf7 {[%emt 0:00:22]} Kh2 {[%emt 0:00:22]} 56. Rf8 {[%emt 0:00:32]} h3 {[%emt 0:00:16]} 57. Rf7 {[%emt 0:00:20]} Rxb3 {[%emt 0:00:23]} 58. Rxf4 {[%emt 0:00:07]} Rb2+ {[%emt 0:00:03]} 59. Kf1 {[%emt 0:01:52]} Kg3 {[%emt 0:00:07]} 60. Rf8 {[%emt 0:00:06]} Rb1+ {[%emt 0:00:17]} 61. Ke2 {[%emt 0:00:07]} h2 {[%emt 0:00:11]} 0-1

[Event "GEO-ch 1st League 2021"]
[Site "Tbilisi"]
[Date "2021.04.05"]
[Round "8.9"]
[White "Tsanatsqenishvili, Alexandre"]
[Black "Kachkachishvili, Lasha"]
[Result "0-1"]
[ECO "B15"]
[WhiteElo "1702"]
[BlackElo "1681"]
[Annotator "NA"]
[PlyCount "116"]
[EventDate "2021.03.29"]
[EventType "swiss"]
[EventCountry "GEO"]
[SourceTitle "playchess.com"]
[Source "ChessBase"]
[SourceQuality "1"]
[TimeControl "5400+30"]

1. e4 {[%emt 0:00:00]} c6 {[%emt 0:00:15]} 2. Nf3 {[%emt 0:00:00]} d5 {[%emt 0:00:08]} 3. Nc3 {[%emt 0:00:01]} g6 {[%emt 0:00:06]} 4. h3 {[%emt 0:04:47]} Bg7 {[%emt 0:00:26]} 5. d4 {[%emt 0:01:33]} dxe4 {[%emt 0:00:44]} 6. Nxe4 {[%emt 0:00:12]} Nf6 {[%emt 0:00:05]} 7. Nxf6+ {[%emt 0:01:27]} exf6 {[%emt 0:00:02]} 8. Bd3 {[%emt 0:04:29]} O-O {[%emt 0:00:08]} 9. Be3 {[%emt 0:04:04]} Re8 {[%emt 0:00:35]} 10. Qd2 {[%emt 0:01:29]} Be6 {[%emt 0:02:20]} 11. O-O-O {[%emt 0:04:47]} b5 {[%emt 0:01:57]} 12. Rhe1 {[%emt 0:31:35]} a5 {[%emt 0:02:41]} 13. b3 {[%emt 0:18:17]} a4 {[%emt 0:01:01]} 14. Kb2 {[%emt 0:00:53]} Qe7 {[%emt 0:05:22]} 15. b4 {[%emt 0:01:13]} a3+ {[%emt 0:02:46]} 16. Ka1 {[%emt 0:01:32]} Na6 {[%emt 0:04:30]} 17. c3 {[%emt 0:01:08]} Nc7 {[%emt 0:00:24]} 18. Qc2 {[%emt 0:02:45]} Nd5 {[%emt 0:02:49]} 19. Bc1 {[%emt 0:00:02]} Qd7 {[%emt 0:01:05]} 20. Re2 {[%emt 0:01:19]} Bf8 {[%emt 0:01:46]} 21. Rde1 {[%emt 0:01:46]} Ra4 {[%emt 0:04:28]} 22. Bd2 {[%emt 0:01:25]} Bd6 {[%emt 0:07:27]} 23. Qc1 {[%emt 0:00:07]} Raa8 {[%emt 0:02:22]} 24. Be4 {[%emt 0:01:35]} Nb6 {[%emt 0:00:42]} 25. Qc2 {[%emt 0:01:27]} Na4 {[%emt 0:01:36]} 26. Bh6 {[%emt 0:00:32]} Nb2 {[%emt 0:01:09]} 27. Nd2 {[%emt 0:00:21]} f5 {[%emt 0:05:13]} 28. Bf3 {[%emt 0:00:17]} Red8 {[%emt 0:04:25]} 29. Bg5 {[%emt 0:00:46]} Rdc8 {[%emt 0:01:10]} 30. Bf6 {[%emt 0:01:39]} Bf8 {[%emt 0:02:14]} 31. h4 {[%emt 0:00:23]} h5 {[%emt 0:01:20]} 32. g3 {[%emt 0:00:30]} Bh6 {[%emt 0:05:17]} 33. Nb3 {[%emt 0:00:24]} Bc4 {[%emt 0:03:32]} 34. Re7 {[%emt 0:07:09]} Qd6 {[%emt 0:05:31]} 35. Bg5 {[%emt 0:00:01]} Bf8 {[%emt 0:00:20]} 36. R7e3 {[%emt 0:00:15]} Na4 {[%emt 0:02:13]} 37. Nd2 {[%emt 0:00:53]} Bd5 {[%emt 0:00:55]} 38. Bf4 {[%emt 0:05:10]} Qd7 {[%emt 0:00:14]} 39. Qd1 {[%emt 0:01:19]} Nxc3 {[%emt 0:02:39]} 40. Rxc3 {[%emt 0:00:18]} Bxb4 {[%emt 0:00:06]} 41. Rd3 {[%emt 0:00:34]} Bc4 {[%emt 0:01:23]} 42. Nxc4 {[%emt 0:00:17]} bxc4 {[%emt 0:00:07]} 43. Rde3 {[%emt 0:00:16]} Bxe1 {[%emt 0:01:44]} 44. Rxe1 {[%emt 0:00:01]} Re8 {[%emt 0:00:47]} 45. Be5 {[%emt 0:00:37]} Rab8 {[%emt 0:03:57]} 46. Re2 {[%emt 0:01:51]} Rb5 {[%emt 0:00:48]} 47. Rc2 {[%emt 0:00:37]} Qe6 {[%emt 0:04:14]} 48. Re2 {[%emt 0:00:04]} Qd7 {[%emt 0:00:42]} 49. Rc2 {[%emt 0:00:16]} Rb4 {[%emt 0:00:36]} 50. Qd2 {[%emt 0:00:32]} Qb7 {[%emt 0:01:38]} 51. Qc1 {[%emt 0:00:01]} Qb5 {[%emt 0:01:02]} 52. Bf4 {[%emt 0:00:26]} Qb6 {[%emt 0:01:58]} 53. Rc3 {[%emt 0:02:19]} Qxd4 {[%emt 0:04:41]} 54. Qd2 {[%emt 0:00:01]} Qb6 {[%emt 0:00:33]} 55. Rc1 {[%emt 0:00:48]} Rb2 {[%emt 0:00:37]} 56. Qc3 {[%emt 0:00:22]} Rxf2 {[%emt 0:01:13]} 57. Rb1 {[%emt 0:00:49]} Rxf3 {[%emt 0:00:28]} 58. Qf6 {[%emt 0:00:45]} Qd8 {[%emt 0:00:36]} 0-1

[Event "GEO-ch 1st League 2021"]
[Site "Tbilisi"]
[Date "2021.04.05"]
[Round "8.10"]
[White "Tsereteli, Tornike"]
[Black "Siprashvili, Ivane"]
[Result "1-0"]
[ECO "C68"]
[WhiteElo "1765"]
[BlackElo "2075"]
[Annotator "ChessBase"]
[PlyCount "91"]
[EventDate "2021.03.29"]
[EventType "swiss"]
[EventCountry "GEO"]
[SourceTitle "playchess.com"]
[Source "ChessBase"]
[SourceQuality "1"]
[TimeControl "5400+30"]

1. e4 {[%emt 0:00:00]} e5 {[%emt 0:00:00]} 2. Nf3 {[%emt 0:00:00]} Nc6 {[%emt 0:00:00]} 3. Bb5 {[%emt 0:00:00]} a6 {[%emt 1:31:30]} 4. Bxc6 {[%emt 1:32:00]} dxc6 {[%emt 0:00:00]} 5. O-O {[%emt 0:00:00]} Qd6 {[%emt 0:00:00]} 6. c3 {[%emt 0:00:00]} c5 {[%emt 0:00:00]} 7. d4 {[%emt 0:00:00]} cxd4 {[%emt 0:00:00]} 8. cxd4 {[%emt 0:00:00]} exd4 {[%emt 0:00:00]} 9. e5 {[%emt 0:00:00]} Qg6 {[%emt 0:00:00]} 10. Qxd4 {[%emt 0:00:00]} Bh3 {[%emt 0:00:00]} 11. Ng5 {[%emt 0:00:00]} Bf5 {[%emt 0:00:00]} 12. Nc3 {[%emt 0:00:00]} Ne7 {[%emt 0:00:00]} 13. e6 {[%emt 0:00:00]} Bxe6 {[%emt 0:00:00]} 14. Nxe6 {[%emt 0:00:00]} fxe6 {[%emt 0:00:00]} 15. Rd1 {[%emt 0:00:00]} Kf7 {[%emt 0:00:00]} 16. Qf4+ {[%emt 0:00:00]} Kg8 {[%emt 0:00:00]} 17. Qxc7 {[%emt 0:00:00]} b5 {[%emt 0:00:00]} 18. Qb7 {[%emt 0:00:00]} Re8 {[%emt 0:00:00]} 19. Qxa6 {[%emt 0:00:00]} b4 {[%emt 0:00:00]} 20. Ne2 {[%emt 0:00:00]} Nd5 {[%emt 0:00:00]} 21. Nf4 {[%emt 0:00:00]} Nxf4 {[%emt 0:00:00]} 22. Bxf4 {[%emt 0:00:00]} h6 {[%emt 0:00:00]} 23. Bd6 {[%emt 0:00:00]} Kh7 {[%emt 0:00:00]} 24. Qc4 {[%emt 0:00:00]} Bxd6 {[%emt 0:00:00]} 25. Rxd6 {[%emt 0:00:00]} Rhf8 {[%emt 0:00:00]} 26. Qxb4 {[%emt 0:00:00]} Rb8 {[%emt 0:00:00]} 27. Qd2 {[%emt 0:00:00]} Qf6 {[%emt 0:00:00]} 28. Rb1 {[%emt 0:00:00]} Rbd8 {[%emt 0:00:00]} 29. Rxd8 {[%emt 0:00:00]} Rxd8 {[%emt 0:00:00]} 30. Qc2+ {[%emt 0:00:00]} Kh8 {[%emt 0:00:00]} 31. h3 {[%emt 0:00:00]} Qd4 {[%emt 0:00:00]} 32. Re1 {[%emt 0:00:00]} e5 {[%emt 0:00:00]} 33. Qc3 {[%emt 0:00:00]} Qd5 {[%emt 0:00:00]} 34. Rxe5 {[%emt 0:00:00]} Qxa2 {[%emt 0:00:00]} 35. Re7 {[%emt 0:00:00]} Qb1+ {[%emt 0:00:00]} 36. Kh2 {[%emt 0:00:00]} Qg6 {[%emt 0:00:00]} 37. Qc7 {[%emt 0:00:00]} Rd2 {[%emt 0:00:00]} 38. Qb8+ {[%emt 0:00:00]} Kh7 {[%emt 0:00:00]} 39. Re8 {[%emt 0:00:00]} Qf6 {[%emt 0:00:00]} 40. Rh8+ {[%emt 0:00:00]} Kg6 {[%emt 0:00:00]} 41. Rf8 {[%emt 0:00:00]} Qe6 {[%emt 0:00:00]} 42. b4 {[%emt 0:00:00]} Rb2 {[%emt 0:00:00]} 43. Qg3+ {[%emt 0:00:00]} Kh5 {[%emt 0:00:00]} 44. Re8 {[%emt 0:00:00]} Qd7 {[%emt 0:00:00]} 45. Re7 {[%emt 0:00:00]} Qd1 {[%emt 0:00:00]} 46. Qe5+ {[%emt 0:00:00]} 1-0